[Event "Titled Tuesday Blitz June 1 2021"]
[White "Fier, Alexandr"]
[Black "Nakamura, Hikaru"]
[WhiteFideId "2107139"]
[BlackFideId "2016192"]
[WhiteElo "2569"]
[BlackElo "2900"]
[Result "0-1"]
[Round "03"]
[TimeControl "180+1"]
[Date "2021.06.01"]
[WhiteClock "0:00:04"]
[BlackClock "0:00:16"]

1. e4 {[%clk 0:03:00]}  g6 {[%clk 0:02:55]} 2. d4 {[%clk 0:03:00]}  Bg7 {[%clk 0:02:55]} 3. Nc3 {[%clk 0:03:00]}  a6 {[%clk 0:02:55]} 4. Be3 {[%clk 0:02:59]}  b5 {[%clk 0:02:53]} 5. Qd2 {[%clk 0:02:59]}  Bb7 {[%clk 0:02:53]} 6. f3 {[%clk 0:02:59]}  d6 {[%clk 0:02:53]} 7. O-O-O {[%clk 0:02:58]}  Nd7 {[%clk 0:02:52]} 8. h4 {[%clk 0:02:58]}  h5 {[%clk 0:02:51]} 9. Nh3 {[%clk 0:02:56]}  Nb6 {[%clk 0:02:51]} 10. a3 {[%clk 0:02:55]}  e6 {[%clk 0:02:51]} 11. Kb1 {[%clk 0:02:54]}  Nf6 {[%clk 0:02:51]} 12. Ng5 {[%clk 0:02:55]}  Nfd7 {[%clk 0:02:52]} 13. Be2 {[%clk 0:02:49]}  Qe7 {[%clk 0:02:51]} 14. g4 {[%clk 0:02:47]}  O-O-O {[%clk 0:02:44]} 15. gxh5 {[%clk 0:02:38]}  Rxh5 {[%clk 0:02:40]} 16. f4 {[%clk 0:02:37]}  Rhh8 {[%clk 0:02:40]} 17. Qe1 {[%clk 0:02:06]}  Kb8 {[%clk 0:02:36]} 18. Qf2 {[%clk 0:02:04]}  f6 {[%clk 0:01:47]} 19. Nf3 {[%clk 0:02:02]}  f5 {[%clk 0:01:48]} 20. e5 {[%clk 0:01:57]}  Bh6 {[%clk 0:01:36]} 21. Rhg1 {[%clk 0:01:51]}  Rhg8 {[%clk 0:01:36]} 22. Ng5 {[%clk 0:01:49]}  Bxg5 {[%clk 0:01:33]} 23. Rxg5 {[%clk 0:01:49]}  dxe5 {[%clk 0:01:20]} 24. fxe5 {[%clk 0:01:36]}  Qf7 {[%clk 0:01:11]} 25. Rdg1 {[%clk 0:01:35]}  Nd5 {[%clk 0:01:02]} 26. Nxd5 {[%clk 0:01:35]}  Bxd5 {[%clk 0:01:03]} 27. Qg3 {[%clk 0:01:31]}  Be4 {[%clk 0:00:57]} 28. Bf4 {[%clk 0:01:23]}  Nb6 {[%clk 0:00:56]} 29. Rxg6 {[%clk 0:01:13]}  Rxg6 {[%clk 0:00:56]} 30. Qxg6 {[%clk 0:01:14]}  Qd7 {[%clk 0:00:56]} 31. Rd1 {[%clk 0:01:07]}  Qc6 {[%clk 0:00:54]} 32. Bd3 {[%clk 0:00:56]}  Rxd4 {[%clk 0:00:35]} 33. Be3 {[%clk 0:00:56]}  Rd8 {[%clk 0:00:33]} 34. Qg5 {[%clk 0:00:47]}  Rd7 {[%clk 0:00:31]} 35. Bxb6 {[%clk 0:00:44]}  Qxb6 {[%clk 0:00:32]} 36. h5 {[%clk 0:00:42]}  Qf2 {[%clk 0:00:31]} 37. h6 {[%clk 0:00:39]}  Qf3 {[%clk 0:00:27]} 38. Rf1 {[%clk 0:00:28]}  Qh3 {[%clk 0:00:27]} 39. Be2 {[%clk 0:00:20]}  Qh2 {[%clk 0:00:24]} 40. Qe3 {[%clk 0:00:20]}  Rh7 {[%clk 0:00:23]} 41. a4 {[%clk 0:00:20]}  Qxh6 {[%clk 0:00:22]} 42. Qd4 {[%clk 0:00:15]}  Qh2 {[%clk 0:00:20]} 43. Bd3 {[%clk 0:00:12]}  Bxd3 {[%clk 0:00:20]} 44. Qxd3 {[%clk 0:00:13]}  Qxe5 {[%clk 0:00:19]} 45. axb5 {[%clk 0:00:12]}  Qxb5 {[%clk 0:00:20]} 46. Qd8+ {[%clk 0:00:12]}  Kb7 {[%clk 0:00:21]} 47. Re1 {[%clk 0:00:13]}  Rd7 {[%clk 0:00:20]} 48. Qf6 {[%clk 0:00:13]}  Rd6 {[%clk 0:00:20]} 49. Qc3 {[%clk 0:00:12]}  Rc6 {[%clk 0:00:20]} 50. Qd4 {[%clk 0:00:11]}  Qc5 {[%clk 0:00:20]} 51. Qd2 {[%clk 0:00:11]}  Rb6 {[%clk 0:00:19]} 52. b3 {[%clk 0:00:11]}  a5 {[%clk 0:00:19]} 53. Qg2+ {[%clk 0:00:11]}  Qc6 {[%clk 0:00:19]} 54. Qg3 {[%clk 0:00:09]}  a4 {[%clk 0:00:19]} 55. Kb2 {[%clk 0:00:09]}  axb3 {[%clk 0:00:20]} 56. cxb3 {[%clk 0:00:10]}  Qd6 {[%clk 0:00:20]} 57. Qf3+ {[%clk 0:00:10]}  Rc6 {[%clk 0:00:20]} 58. Re2 {[%clk 0:00:06]}  Qd4+ {[%clk 0:00:20]} 59. Ka2 {[%clk 0:00:06]}  Qd5 {[%clk 0:00:18]} 60. Qe3 {[%clk 0:00:04]}  Ra6+ {[%clk 0:00:18]} 61. Kb2 {[%clk 0:00:04]}  Rb6 {[%clk 0:00:18]} 62. Rd2 {[%clk 0:00:04]}  Qc6 {[%clk 0:00:18]} 63. Qd4 {[%clk 0:00:04]}  Qb5 {[%clk 0:00:17]} 64. Rd3 {[%clk 0:00:04]}  Rd6 {[%clk 0:00:16]} 0-1


[Site "https://www.chess.com"]

[Event "Titled Tuesday Blitz June 1 2021"]
[White "Hansen, Eric"]
[Black "Kretov, Evgenij"]
[WhiteFideId "2606771"]
[BlackFideId "4167821"]
[WhiteElo "2568"]
[BlackElo "2381"]
[Result "1-0"]
[Round "03"]
[TimeControl "180+1"]
[Date "2021.06.01"]
[WhiteClock "0:00:05"]
[BlackClock "0:00:17"]

1. e4 {[%clk 0:02:39]}  c5 {[%clk 0:02:59]} 2. Nf3 {[%clk 0:02:38]}  Nc6 {[%clk 0:02:59]} 3. Bb5 {[%clk 0:02:38]}  g6 {[%clk 0:02:59]} 4. Bxc6 {[%clk 0:02:37]}  bxc6 {[%clk 0:02:59]} 5. O-O {[%clk 0:02:37]}  Bg7 {[%clk 0:02:59]} 6. c3 {[%clk 0:02:30]}  Nf6 {[%clk 0:02:58]} 7. e5 {[%clk 0:02:29]}  Nd5 {[%clk 0:02:58]} 8. d4 {[%clk 0:02:22]}  cxd4 {[%clk 0:02:57]} 9. Qxd4 {[%clk 0:02:23]}  O-O {[%clk 0:02:56]} 10. Qh4 {[%clk 0:02:22]}  Nc7 {[%clk 0:02:18]} 11. Bh6 {[%clk 0:02:20]}  Ne6 {[%clk 0:02:18]} 12. Nbd2 {[%clk 0:02:18]}  Ba6 {[%clk 0:02:15]} 13. Rfe1 {[%clk 0:02:17]}  Bd3 {[%clk 0:02:13]} 14. Re3 {[%clk 0:02:12]}  Bf5 {[%clk 0:02:13]} 15. b3 {[%clk 0:01:53]}  f6 {[%clk 0:01:50]} 16. Bxg7 {[%clk 0:01:51]}  Kxg7 {[%clk 0:01:47]} 17. Rae1 {[%clk 0:01:46]}  g5 {[%clk 0:01:44]} 18. Qc4 {[%clk 0:01:46]}  h6 {[%clk 0:01:40]} 19. Nd4 {[%clk 0:01:32]}  Nxd4 {[%clk 0:01:02]} 20. Qxd4 {[%clk 0:01:32]}  e6 {[%clk 0:00:55]} 21. Nc4 {[%clk 0:01:29]}  Rc8 {[%clk 0:00:45]} 22. Nd6 {[%clk 0:01:20]}  Rc7 {[%clk 0:00:44]} 23. c4 {[%clk 0:01:16]}  fxe5 {[%clk 0:00:42]} 24. Qxe5+ {[%clk 0:01:16]}  Kg6 {[%clk 0:00:42]} 25. h3 {[%clk 0:01:11]}  Qf6 {[%clk 0:00:41]} 26. g4 {[%clk 0:00:40]}  Bc2 {[%clk 0:00:36]} 27. R1e2 {[%clk 0:00:31]}  Qxe5 {[%clk 0:00:26]} 28. Rxe5 {[%clk 0:00:31]}  Bb1 {[%clk 0:00:26]} 29. Rb2 {[%clk 0:00:30]}  Kf6 {[%clk 0:00:21]} 30. Re1 {[%clk 0:00:21]}  Bg6 {[%clk 0:00:21]} 31. b4 {[%clk 0:00:20]}  Ke7 {[%clk 0:00:21]} 32. c5 {[%clk 0:00:20]}  Rf4 {[%clk 0:00:20]} 33. a3 {[%clk 0:00:18]}  Rd4 {[%clk 0:00:20]} 34. Re3 {[%clk 0:00:17]}  Rd5 {[%clk 0:00:20]} 35. Kg2 {[%clk 0:00:17]}  a5 {[%clk 0:00:20]} 36. Kg3 {[%clk 0:00:15]}  axb4 {[%clk 0:00:20]} 37. axb4 {[%clk 0:00:16]}  Ra7 {[%clk 0:00:21]} 38. Nc8+ {[%clk 0:00:16]}  Kd8 {[%clk 0:00:19]} 39. Nxa7 {[%clk 0:00:17]}  Kc7 {[%clk 0:00:20]} 40. Rf3 {[%clk 0:00:11]}  Kb7 {[%clk 0:00:20]} 41. Ra3 {[%clk 0:00:10]}  Rd1 {[%clk 0:00:19]} 42. b5 {[%clk 0:00:10]}  cxb5 {[%clk 0:00:18]} 43. Nxb5 {[%clk 0:00:08]}  Kc6 {[%clk 0:00:18]} 44. Na7+ {[%clk 0:00:05]}  Kd5 {[%clk 0:00:17]} 45. c6 {[%clk 0:00:05]}  Be4 {[%clk 0:00:17]} 46. f3 {[%clk 0:00:05]} 1-0


[Site "https://www.chess.com"]

[Event "Titled Tuesday Blitz June 1 2021"]
[White "Hess, Robert"]
[Black "Schmidt, Harald"]
[WhiteFideId "2022036"]
[BlackFideId "4648358"]
[WhiteElo "2557"]
[BlackElo "2331"]
[Result "1-0"]
[Round "03"]
[TimeControl "180+1"]
[Date "2021.06.01"]
[WhiteClock "0:00:17"]
[BlackClock "0:00:08"]

1. b3 {[%clk 0:03:00]}  a5 {[%clk 0:02:57]} 2. c4 {[%clk 0:03:00]}  a4 {[%clk 0:02:56]} 3. bxa4 {[%clk 0:03:01]}  d6 {[%clk 0:02:54]} 4. Nc3 {[%clk 0:03:01]}  Bd7 {[%clk 0:02:54]} 5. e3 {[%clk 0:02:59]}  e5 {[%clk 0:02:53]} 6. Nf3 {[%clk 0:02:56]}  Nf6 {[%clk 0:02:51]} 7. Bd3 {[%clk 0:02:49]}  Nc6 {[%clk 0:02:45]} 8. O-O {[%clk 0:02:48]}  g6 {[%clk 0:02:39]} 9. Ba3 {[%clk 0:02:34]}  Bg7 {[%clk 0:02:32]} 10. c5 {[%clk 0:02:22]}  d5 {[%clk 0:02:31]} 11. Bb5 {[%clk 0:02:18]}  Qe7 {[%clk 0:01:58]} 12. d4 {[%clk 0:02:07]}  e4 {[%clk 0:01:57]} 13. Bxc6 {[%clk 0:01:53]}  Bxc6 {[%clk 0:01:43]} 14. Ne5 {[%clk 0:01:54]}  O-O {[%clk 0:01:42]} 15. Rb1 {[%clk 0:01:47]}  h5 {[%clk 0:01:34]} 16. Nxc6 {[%clk 0:01:32]}  bxc6 {[%clk 0:01:33]} 17. Rb7 {[%clk 0:01:32]}  Ng4 {[%clk 0:01:24]} 18. h3 {[%clk 0:01:31]}  Nh6 {[%clk 0:01:20]} 19. Qe2 {[%clk 0:01:29]}  f5 {[%clk 0:01:17]} 20. Rfb1 {[%clk 0:01:25]}  f4 {[%clk 0:01:16]} 21. exf4 {[%clk 0:01:26]}  Bxd4 {[%clk 0:01:13]} 22. Qd2 {[%clk 0:01:03]}  Bg7 {[%clk 0:01:02]} 23. R1b6 {[%clk 0:00:36]}  d4 {[%clk 0:00:56]} 24. Rxc6 {[%clk 0:00:28]}  dxc3 {[%clk 0:00:56]} 25. Qd5+ {[%clk 0:00:29]}  Qf7 {[%clk 0:00:56]} 26. Rcxc7 {[%clk 0:00:26]}  c2 {[%clk 0:00:17]} 27. Rxf7 {[%clk 0:00:23]}  Nxf7 {[%clk 0:00:17]} 28. Rxf7 {[%clk 0:00:23]}  Kh7 {[%clk 0:00:10]} 29. Rxg7+ {[%clk 0:00:16]}  Kxg7 {[%clk 0:00:09]} 30. Bb2+ {[%clk 0:00:17]}  Kh6 {[%clk 0:00:08]} 31. Qg5+ {[%clk 0:00:17]} 1-0


[Site "https://www.chess.com"]

[Event "Titled Tuesday Blitz June 1 2021"]
[White "Indjic, Aleksandar"]
[Black "Sammed_Shete"]
[WhiteFideId "911925"]
[WhiteElo "2643"]
[BlackElo "2702"]
[Result "1-0"]
[Round "03"]
[TimeControl "180+1"]
[Date "2021.06.01"]
[WhiteClock "0:01:42"]
[BlackClock "0:00:11"]

1. d4 {[%clk 0:03:00]}  Nf6 {[%clk 0:02:59]} 2. Nf3 {[%clk 0:03:01]}  e6 {[%clk 0:02:59]} 3. Bg5 {[%clk 0:03:01]}  d5 {[%clk 0:02:59]} 4. e3 {[%clk 0:03:00]}  Be7 {[%clk 0:02:58]} 5. c3 {[%clk 0:02:58]}  O-O {[%clk 0:02:57]} 6. Nbd2 {[%clk 0:02:58]}  b6 {[%clk 0:02:50]} 7. Bd3 {[%clk 0:02:58]}  Ba6 {[%clk 0:02:50]} 8. Bxa6 {[%clk 0:02:56]}  Nxa6 {[%clk 0:02:51]} 9. Qe2 {[%clk 0:02:55]}  Nb8 {[%clk 0:02:49]} 10. h4 {[%clk 0:02:55]}  c5 {[%clk 0:02:47]} 11. Bxf6 {[%clk 0:02:54]}  Bxf6 {[%clk 0:02:46]} 12. g4 {[%clk 0:02:54]}  Nc6 {[%clk 0:02:35]} 13. g5 {[%clk 0:02:54]}  Be7 {[%clk 0:02:34]} 14. Ne5 {[%clk 0:02:45]}  Nxe5 {[%clk 0:02:21]} 15. dxe5 {[%clk 0:02:46]}  d4 {[%clk 0:02:22]} 16. f4 {[%clk 0:02:46]}  dxc3 {[%clk 0:01:39]} 17. bxc3 {[%clk 0:02:45]}  Qd5 {[%clk 0:01:38]} 18. Kf2 {[%clk 0:02:39]}  Rfd8 {[%clk 0:01:32]} 19. Rhd1 {[%clk 0:02:39]}  Qc6 {[%clk 0:01:23]} 20. Qf3 {[%clk 0:02:29]}  Qa4 {[%clk 0:01:22]} 21. Ne4 {[%clk 0:02:23]}  Rab8 {[%clk 0:01:03]} 22. Kg3 {[%clk 0:02:18]}  Rxd1 {[%clk 0:00:44]} 23. Rxd1 {[%clk 0:02:16]}  Qxa2 {[%clk 0:00:31]} 24. Rd7 {[%clk 0:02:15]}  Kf8 {[%clk 0:00:29]} 25. Qh5 {[%clk 0:01:52]}  Qb1 {[%clk 0:00:17]} 26. Qxh7 {[%clk 0:01:51]}  Qg1+ {[%clk 0:00:17]} 27. Kf3 {[%clk 0:01:51]}  Qh1+ {[%clk 0:00:15]} 28. Ke2 {[%clk 0:01:49]}  Ke8 {[%clk 0:00:15]} 29. Rxa7 {[%clk 0:01:42]}  Qg2+ {[%clk 0:00:14]} 30. Nf2 {[%clk 0:01:42]}  Rd8 {[%clk 0:00:13]} 31. Qg8+ {[%clk 0:01:41]}  Bf8 {[%clk 0:00:11]} 32. Qxf7# {[%clk 0:01:42]} 1-0


[Site "https://www.chess.com"]

[Event "Titled Tuesday Blitz June 1 2021"]
[White "Ivanisevic, Ivan"]
[Black "Torkkola, Henri"]
[WhiteFideId "912417"]
[BlackFideId "507660"]
[WhiteElo "2499"]
[BlackElo "2137"]
[Result "1-0"]
[Round "03"]
[TimeControl "180+1"]
[Date "2021.06.01"]
[WhiteClock "0:00:17"]
[BlackClock "0:00:01"]

1. d4 {[%clk 0:03:00]}  d6 {[%clk 0:03:00]} 2. e4 {[%clk 0:02:59]}  Nf6 {[%clk 0:02:59]} 3. Nc3 {[%clk 0:02:59]}  e5 {[%clk 0:03:00]} 4. Nf3 {[%clk 0:02:59]}  Nbd7 {[%clk 0:03:00]} 5. Bc4 {[%clk 0:02:59]}  Be7 {[%clk 0:03:00]} 6. a4 {[%clk 0:02:59]}  O-O {[%clk 0:03:00]} 7. O-O {[%clk 0:02:59]}  exd4 {[%clk 0:03:00]} 8. Nxd4 {[%clk 0:02:59]}  Ne5 {[%clk 0:03:00]} 9. Bb3 {[%clk 0:02:56]}  c5 {[%clk 0:02:56]} 10. Nf5 {[%clk 0:02:53]}  Bxf5 {[%clk 0:02:51]} 11. exf5 {[%clk 0:02:54]}  c4 {[%clk 0:02:51]} 12. Ba2 {[%clk 0:02:53]}  d5 {[%clk 0:02:51]} 13. b3 {[%clk 0:02:14]}  Rc8 {[%clk 0:02:21]} 14. bxc4 {[%clk 0:02:12]}  dxc4 {[%clk 0:02:22]} 15. Bf4 {[%clk 0:02:09]}  Bd6 {[%clk 0:02:12]} 16. Nb5 {[%clk 0:02:00]}  Bb8 {[%clk 0:02:08]} 17. Nxa7 {[%clk 0:01:57]}  Qxd1 {[%clk 0:01:52]} 18. Raxd1 {[%clk 0:01:55]}  Nf3+ {[%clk 0:01:53]} 19. gxf3 {[%clk 0:01:54]}  Bxa7 {[%clk 0:01:53]} 20. Rfe1 {[%clk 0:01:46]}  Rc5 {[%clk 0:00:50]} 21. Bd6 {[%clk 0:01:44]}  Rcc8 {[%clk 0:00:34]} 22. Bxf8 {[%clk 0:01:44]}  Kxf8 {[%clk 0:00:34]} 23. Re5 {[%clk 0:01:31]}  Nh5 {[%clk 0:00:31]} 24. Rb5 {[%clk 0:01:30]}  Rc7 {[%clk 0:00:29]} 25. Rdb1 {[%clk 0:01:27]}  b6 {[%clk 0:00:27]} 26. a5 {[%clk 0:01:23]}  bxa5 {[%clk 0:00:25]} 27. Rb7 {[%clk 0:01:23]}  Rxb7 {[%clk 0:00:21]} 28. Rxb7 {[%clk 0:01:24]}  Bd4 {[%clk 0:00:18]} 29. Bxc4 {[%clk 0:01:23]}  f6 {[%clk 0:00:18]} 30. Rd7 {[%clk 0:01:00]}  Bc3 {[%clk 0:00:17]} 31. Rf7+ {[%clk 0:00:55]}  Ke8 {[%clk 0:00:17]} 32. Ra7 {[%clk 0:00:55]}  Kf8 {[%clk 0:00:17]} 33. Kf1 {[%clk 0:00:53]}  Bb4 {[%clk 0:00:16]} 34. f4 {[%clk 0:00:40]}  Bd6 {[%clk 0:00:14]} 35. Rxa5 {[%clk 0:00:38]}  Bxf4 {[%clk 0:00:14]} 36. h3 {[%clk 0:00:34]}  Be5 {[%clk 0:00:10]} 37. Ra7 {[%clk 0:00:34]}  Bc3 {[%clk 0:00:08]} 38. h4 {[%clk 0:00:31]}  Be5 {[%clk 0:00:07]} 39. Ke2 {[%clk 0:00:30]}  Nf4+ {[%clk 0:00:06]} 40. Kf3 {[%clk 0:00:31]}  Nh5 {[%clk 0:00:04]} 41. Ke4 {[%clk 0:00:30]}  g6 {[%clk 0:00:04]} 42. Rxh7 {[%clk 0:00:28]}  gxf5+ {[%clk 0:00:04]} 43. Kxf5 {[%clk 0:00:28]}  Ng7+ {[%clk 0:00:04]} 44. Kg6 {[%clk 0:00:28]}  Ne8 {[%clk 0:00:02]} 45. Rf7+ {[%clk 0:00:27]}  Kg8 {[%clk 0:00:02]} 46. h5 {[%clk 0:00:18]}  Bd4 {[%clk 0:00:01]} 47. h6 {[%clk 0:00:17]}  Nd6 {[%clk 0:00:01]} 48. h7+ {[%clk 0:00:16]}  Kh8 {[%clk 0:00:01]} 49. Rf8# {[%clk 0:00:17]} 1-0


[Site "https://www.chess.com"]

[Event "Titled Tuesday Blitz June 1 2021"]
[White "Janaszak, Dawid"]
[Black "Colas, Joshua"]
[WhiteFideId "1119206"]
[BlackFideId "2044447"]
[WhiteElo "2332"]
[BlackElo "2347"]
[Result "1-0"]
[Round "03"]
[TimeControl "180+1"]
[Date "2021.06.01"]
[WhiteClock "0:00:15"]
[BlackClock "0:00:12"]

1. d4 {[%clk 0:03:00]}  Nf6 {[%clk 0:02:47]} 2. Nf3 {[%clk 0:03:00]}  d5 {[%clk 0:02:43]} 3. Bf4 {[%clk 0:02:58]}  g6 {[%clk 0:02:40]} 4. Nc3 {[%clk 0:02:53]}  Bg7 {[%clk 0:02:37]} 5. Nb5 {[%clk 0:02:51]}  Na6 {[%clk 0:02:36]} 6. h3 {[%clk 0:02:45]}  O-O {[%clk 0:02:35]} 7. e3 {[%clk 0:02:44]}  c6 {[%clk 0:02:31]} 8. Nc3 {[%clk 0:02:44]}  Nc7 {[%clk 0:02:28]} 9. g4 {[%clk 0:02:38]}  Ne4 {[%clk 0:02:26]} 10. Bd3 {[%clk 0:02:25]}  Nxc3 {[%clk 0:02:17]} 11. bxc3 {[%clk 0:02:26]}  Nb5 {[%clk 0:01:56]} 12. c4 {[%clk 0:02:07]}  dxc4 {[%clk 0:01:45]} 13. Bxc4 {[%clk 0:02:08]}  Nd6 {[%clk 0:01:41]} 14. Bb3 {[%clk 0:02:01]}  c5 {[%clk 0:01:39]} 15. c3 {[%clk 0:01:51]}  Qa5 {[%clk 0:01:34]} 16. Rc1 {[%clk 0:01:45]}  c4 {[%clk 0:01:22]} 17. Bxd6 {[%clk 0:01:31]}  cxb3 {[%clk 0:01:20]} 18. Bxe7 {[%clk 0:01:30]}  bxa2 {[%clk 0:00:59]} 19. Bxf8 {[%clk 0:01:25]}  Bxf8 {[%clk 0:00:53]} 20. Ne5 {[%clk 0:01:20]}  Be6 {[%clk 0:00:37]} 21. O-O {[%clk 0:01:19]}  Ba3 {[%clk 0:00:31]} 22. c4 {[%clk 0:01:06]}  Bb2 {[%clk 0:00:18]} 23. Nd3 {[%clk 0:00:41]}  a1=Q {[%clk 0:00:17]} 24. Rxa1 {[%clk 0:00:40]}  Qxa1 {[%clk 0:00:18]} 25. Qxa1 {[%clk 0:00:37]}  Bxa1 {[%clk 0:00:18]} 26. Rxa1 {[%clk 0:00:37]}  Bxc4 {[%clk 0:00:19]} 27. Nc5 {[%clk 0:00:36]}  b6 {[%clk 0:00:15]} 28. Nd7 {[%clk 0:00:36]}  Rc8 {[%clk 0:00:01]} 29. Rxa7 {[%clk 0:00:33]}  b5 {[%clk 0:00:02]} 30. Nb6 {[%clk 0:00:33]}  Rc6 {[%clk 0:00:02]} 31. Nd7 {[%clk 0:00:31]}  Kg7 {[%clk 0:00:01]} 32. Ne5 {[%clk 0:00:31]}  Rc8 {[%clk 0:00:02]} 33. Rb7 {[%clk 0:00:24]}  Be2 {[%clk 0:00:01]} 34. Rxf7+ {[%clk 0:00:16]}  Kg8 {[%clk 0:00:01]} 35. Kg2 {[%clk 0:00:13]}  h5 {[%clk 0:00:01]} 36. Rb7 {[%clk 0:00:12]}  Bc4 {[%clk 0:00:01]} 37. Kg3 {[%clk 0:00:12]}  Kh8 {[%clk 0:00:02]} 38. Nxg6+ {[%clk 0:00:12]}  Kg8 {[%clk 0:00:03]} 39. gxh5 {[%clk 0:00:12]}  Rd8 {[%clk 0:00:02]} 40. Ne5 {[%clk 0:00:12]}  Kh8 {[%clk 0:00:03]} 41. h6 {[%clk 0:00:12]}  Rg8+ {[%clk 0:00:04]} 42. Kf4 {[%clk 0:00:12]}  Bd5 {[%clk 0:00:05]} 43. e4 {[%clk 0:00:11]}  Rf8+ {[%clk 0:00:05]} 44. Kg5 {[%clk 0:00:11]}  Bxb7 {[%clk 0:00:06]} 45. Ng6+ {[%clk 0:00:11]}  Kg8 {[%clk 0:00:07]} 46. h7+ {[%clk 0:00:11]}  Kxh7 {[%clk 0:00:07]} 47. Nxf8+ {[%clk 0:00:12]}  Kg7 {[%clk 0:00:08]} 48. Ne6+ {[%clk 0:00:12]}  Kf7 {[%clk 0:00:08]} 49. Nc5 {[%clk 0:00:13]}  Bxe4 {[%clk 0:00:08]} 50. Nxe4 {[%clk 0:00:13]}  Ke6 {[%clk 0:00:09]} 51. Nc5+ {[%clk 0:00:13]}  Kd5 {[%clk 0:00:10]} 52. h4 {[%clk 0:00:13]}  Kxd4 {[%clk 0:00:10]} 53. Na6 {[%clk 0:00:13]}  b4 {[%clk 0:00:10]} 54. Nxb4 {[%clk 0:00:13]}  Ke5 {[%clk 0:00:11]} 55. h5 {[%clk 0:00:14]}  Ke6 {[%clk 0:00:12]} 56. Kg6 {[%clk 0:00:15]}  Ke7 {[%clk 0:00:12]} 57. Kg7 {[%clk 0:00:15]} 1-0


[Site "https://www.chess.com"]

[Event "Titled Tuesday Blitz June 1 2021"]
[White "Jarovinsky, Alexey"]
[Black "Le, Tuan Minh"]
[WhiteFideId "14115131"]
[BlackFideId "12401153"]
[WhiteElo "2446"]
[BlackElo "2450"]
[Result "0-1"]
[Round "03"]
[TimeControl "180+1"]
[Date "2021.06.01"]
[WhiteClock "0:00:02"]
[BlackClock "0:00:20"]

1. Nc3 {[%clk 0:03:00]}  d5 {[%clk 0:02:57]} 2. e4 {[%clk 0:03:00]}  dxe4 {[%clk 0:02:55]} 3. Nxe4 {[%clk 0:02:59]}  Nf6 {[%clk 0:02:41]} 4. Nxf6+ {[%clk 0:02:58]}  exf6 {[%clk 0:02:42]} 5. d4 {[%clk 0:02:57]}  Bd6 {[%clk 0:02:42]} 6. Bd3 {[%clk 0:02:54]}  O-O {[%clk 0:02:43]} 7. Qh5 {[%clk 0:02:53]}  Re8+ {[%clk 0:02:39]} 8. Ne2 {[%clk 0:02:52]}  g6 {[%clk 0:02:39]} 9. Qh4 {[%clk 0:02:44]}  Nc6 {[%clk 0:02:16]} 10. c3 {[%clk 0:02:43]}  Be7 {[%clk 0:01:51]} 11. O-O {[%clk 0:02:38]}  f5 {[%clk 0:01:51]} 12. Qg3 {[%clk 0:02:33]}  Bh4 {[%clk 0:01:51]} 13. Qf3 {[%clk 0:02:28]}  Ne7 {[%clk 0:01:36]} 14. Bh6 {[%clk 0:02:07]}  Bf6 {[%clk 0:01:22]} 15. Rad1 {[%clk 0:01:56]}  Qd5 {[%clk 0:01:21]} 16. Qxd5 {[%clk 0:01:49]}  Nxd5 {[%clk 0:01:22]} 17. a3 {[%clk 0:01:39]}  Bd7 {[%clk 0:01:10]} 18. Bc1 {[%clk 0:01:22]}  Be7 {[%clk 0:01:07]} 19. Nf4 {[%clk 0:01:20]}  Nf6 {[%clk 0:01:07]} 20. Bc2 {[%clk 0:01:12]}  Bd6 {[%clk 0:01:06]} 21. Rfe1 {[%clk 0:01:07]}  a5 {[%clk 0:01:03]} 22. Nd3 {[%clk 0:00:57]}  a4 {[%clk 0:00:57]} 23. Bf4 {[%clk 0:00:52]}  Bxf4 {[%clk 0:00:46]} 24. Nxf4 {[%clk 0:00:53]}  Bb5 {[%clk 0:00:40]} 25. f3 {[%clk 0:00:49]}  Kf8 {[%clk 0:00:36]} 26. Kf2 {[%clk 0:00:49]}  Bc4 {[%clk 0:00:36]} 27. Rxe8+ {[%clk 0:00:46]}  Nxe8 {[%clk 0:00:37]} 28. Nd3 {[%clk 0:00:42]}  Nd6 {[%clk 0:00:34]} 29. Ne5 {[%clk 0:00:33]}  Bb5 {[%clk 0:00:35]} 30. Bd3 {[%clk 0:00:30]}  Bxd3 {[%clk 0:00:35]} 31. Nxd3 {[%clk 0:00:29]}  Nc4 {[%clk 0:00:31]} 32. Re1 {[%clk 0:00:27]}  b6 {[%clk 0:00:26]} 33. Re2 {[%clk 0:00:25]}  Rd8 {[%clk 0:00:24]} 34. Ne5 {[%clk 0:00:25]}  Na5 {[%clk 0:00:21]} 35. Ke1 {[%clk 0:00:23]}  f6 {[%clk 0:00:20]} 36. Nd3 {[%clk 0:00:23]}  Kf7 {[%clk 0:00:21]} 37. Kd2 {[%clk 0:00:17]}  g5 {[%clk 0:00:20]} 38. Kc2 {[%clk 0:00:17]}  h5 {[%clk 0:00:20]} 39. h3 {[%clk 0:00:15]}  h4 {[%clk 0:00:20]} 40. Nf2 {[%clk 0:00:11]}  Nc4 {[%clk 0:00:20]} 41. Nd1 {[%clk 0:00:10]}  f4 {[%clk 0:00:17]} 42. Kd3 {[%clk 0:00:09]}  b5 {[%clk 0:00:18]} 43. Kc2 {[%clk 0:00:09]}  f5 {[%clk 0:00:17]} 44. Re1 {[%clk 0:00:09]}  Kf6 {[%clk 0:00:17]} 45. Re2 {[%clk 0:00:09]}  Rg8 {[%clk 0:00:17]} 46. Kc1 {[%clk 0:00:07]}  g4 {[%clk 0:00:17]} 47. fxg4 {[%clk 0:00:07]}  fxg4 {[%clk 0:00:18]} 48. hxg4 {[%clk 0:00:07]}  Rxg4 {[%clk 0:00:19]} 49. Kc2 {[%clk 0:00:07]}  Kf5 {[%clk 0:00:18]} 50. Kd3 {[%clk 0:00:06]}  Rg3+ {[%clk 0:00:18]} 51. Kc2 {[%clk 0:00:07]}  c6 {[%clk 0:00:18]} 52. Kc1 {[%clk 0:00:06]}  Kg4 {[%clk 0:00:16]} 53. Nf2+ {[%clk 0:00:06]}  Kf5 {[%clk 0:00:16]} 54. Ne4 {[%clk 0:00:05]}  Re3 {[%clk 0:00:16]} 55. Rxe3 {[%clk 0:00:04]}  Nxe3 {[%clk 0:00:17]} 56. Nf2 {[%clk 0:00:02]}  Nxg2 {[%clk 0:00:17]} 57. Kd2 {[%clk 0:00:03]}  f3 {[%clk 0:00:17]} 58. Kd3 {[%clk 0:00:03]}  Kf4 {[%clk 0:00:17]} 59. c4 {[%clk 0:00:02]}  bxc4+ {[%clk 0:00:17]} 60. Kxc4 {[%clk 0:00:03]}  Ke3 {[%clk 0:00:18]} 61. Ng4+ {[%clk 0:00:02]}  Ke2 {[%clk 0:00:19]} 62. Kc5 {[%clk 0:00:02]}  Ne3 {[%clk 0:00:19]} 63. Nh2 {[%clk 0:00:02]}  f2 {[%clk 0:00:19]} 64. Kxc6 {[%clk 0:00:02]}  Ng4 {[%clk 0:00:20]} 65. Nxg4 {[%clk 0:00:01]}  f1=Q {[%clk 0:00:20]} 66. Ne5 {[%clk 0:00:02]}  h3 {[%clk 0:00:20]} 67. d5 {[%clk 0:00:02]}  h2 {[%clk 0:00:20]} 68. d6 {[%clk 0:00:02]}  h1=Q+ {[%clk 0:00:20]} 69. Kc7 {[%clk 0:00:03]}  Qf6 {[%clk 0:00:21]} 70. Nc6 {[%clk 0:00:02]}  Qd5 {[%clk 0:00:20]} 0-1


[Site "https://www.chess.com"]